bitfinex-derivatives/quotes_SOLF0:USTF0_20241029
["timestamp","ask_amount","ask_price","bid_price","bid_amount"]
[1730209513987,13.93927943,179.88,179.77,9.35927943]
[1730209514191,13.93927943,179.88,179.79,2.7824]
[1730209514390,2.782,179.83,179.79,2.7824]
[1730209514787,13.93927943,179.88,179.77,9.35927943]
[1730209514992,2.7818,179.84,179.8,2.7823]
[1730209516001,2.7818,179.84,179.75,1.2575]
[1730209516002,2.7814,179.86,179.82,2.782]
[1730209516193,14.48880166,179.88,179.79,9.35927943]
[1730209516395,4.58,179.88,179.79,9.35927943]
[1730209516797,9.90880166,179.89,179.79,9.35927943]
[1730209517006,9.90880166,179.89,179.85,2.7815]
[1730209517007,12.68980166,179.89,179.85,2.7815]
[1730209517196,2.781,179.89,179.85,2.7815]
[1730209517398,4.58,179.9,179.82,9.35927943]
[1730209517597,2.7811,179.88,179.84,2.7816]
[1730209518508,14.48880166,179.9,179.82,9.35927943]
[1730209519107,2.781,179.89,179.85,2.7815]
[1730209519302,4.58,179.9,179.84,9.35927943]
[1730209519503,2.58383184,179.91,179.84,9.35927943]
[1730209519715,7.3608,179.9,179.86,2.7813]
[1730209520007,4.58,179.9,179.84,9.35927943]
[1730209520201,7.3608,179.9,179.86,2.7813]
[1730209520407,7.3608,179.9,179.84,9.35927943]
[1730209520408,4.58,179.9,179.84,9.35927943]
[1730209520703,12.4926335,179.92,179.89,2.781]
[1730209520914,7.16383184,179.92,179.86,9.35927943]
[1730209521424,17.0726335,179.92,179.88,2.781]
[1730209521705,9.90880166,179.92,179.88,9.35927943]
[1730209522012,9.90880166,179.92,179.9,2.7807]
[1730209522206,12.4926335,179.95,179.88,9.35927943]
[1730209522416,7.16383184,179.96,179.91,9.35927943]
[1730209522796,7.16383184,179.96,179.88,9.35927943]
[1730209523203,2.7802,179.94,179.89,2.7809]
[1730209523503,7.16383184,179.96,179.86,9.35927943]
[1730209523703,17.04710128,179.96,179.86,9.35927943]
[1730209523913,7.16383184,179.96,179.86,9.35927943]
[1730209524419,2.7804,179.93,179.89,2.7809]
[1730209525197,2.58383184,179.94,179.89,2.7809]
[1730209526011,2.58383184,179.94,179.86,9.35927943]
[1730209526513,2.58383184,179.94,179.83,9.35927943]
[1730209526908,2.7809,179.9,179.83,9.35927943]
[1730209527108,13.93927943,179.9,179.82,2.782]
[1730209527309,13.93927943,179.9,179.81,1.2943]
[1730209527513,2.7811,179.88,179.81,1.2943]
[1730209528014,13.93927943,179.9,179.81,1.2943]
[1730209528217,13.93927943,179.9,179.79,9.35927943]
[1730209528515,13.93927943,179.9,179.82,2.782]
[1730209528714,13.93927943,179.9,179.79,9.35927943]
[1730209529102,13.93927943,179.9,179.83,2.7818]
[1730209530220,13.93927943,179.9,179.79,9.35927943]
[1730209530406,2.7816,179.85,179.81,2.7821]
[1730209530610,4.58,179.84,179.81,2.7821]
[1730209530804,2.782,179.83,179.78,2.7825]
[1730209531004,4.58,179.84,179.76,9.35927943]
[1730209531503,4.58,179.84,179.81,2.7822]
[1730209531707,1.3198,179.89,179.79,9.35927943]
[1730209531907,4.58,179.86,179.79,9.35927943]
[1730209532216,2.7817,179.85,179.79,9.35927943]
[1730209532519,4.58,179.86,179.79,9.35927943]
[1730209533114,4.58,179.86,179.81,9.35927943]
[1730209533719,4.58,179.86,179.82,2.782]
[1730209533912,4.58,179.86,179.81,9.35927943]
[1730209534115,4.58,179.89,179.81,9.35927943]
[1730209534309,4.58,179.89,179.83,9.35927943]
[1730209535006,2.7812,179.88,179.83,9.35927943]
[1730209535207,4.58,179.89,179.83,9.35927943]
[1730209535406,7.361,179.89,179.85,2.7815]
[1730209535717,4.58,179.89,179.83,9.35927943]
[1730209536018,7.361,179.89,179.85,2.7815]
[1730209536313,4.58,179.89,179.83,9.35927943]
[1730209536720,2.7811,179.88,179.84,2.7816]
[1730209536920,4.58,179.89,179.83,9.35927943]
[1730209537417,4.58,179.89,179.85,2.7815]
[1730209538416,4.58,179.89,179.84,2.7816]
[1730209538610,7.361,179.89,179.83,9.35927943]
[1730209539011,2.58282836,179.92,179.89,2.7808]
[1730209539321,12.2884851,179.93,179.89,2.7808]
[1730209539322,4.54,179.93,179.89,2.7808]
[1730209540014,4.54,179.93,179.88,9.35927943]
[1730209541112,4.54,179.93,179.72,15.23596172]
[1730209541113,9.35927943,179.92,179.72,15.23596172]
[1730209541316,9.35927943,179.85,179.74,3.95513968]
[1730209541615,4.98,179.84,179.74,11.92287943]
[1730209541818,4.98,179.84,179.75,2.783]
[1730209542413,2.58282836,179.86,179.79,9.35927943]
[1730209542722,2.58282836,179.89,179.79,9.35927943]
[1730209542922,2.58282836,179.89,179.81,2.7822]
[1730209542923,2.7813,179.87,179.81,2.7822]
[1730209543421,2.58282836,179.89,179.81,2.7822]
[1730209543618,2.7813,179.87,179.79,9.35927943]
[1730209543825,4.98,179.87,179.78,2.7825]
[1730209544022,4.98,179.87,179.76,9.35927943]
[1730209544221,2.7815,179.86,179.76,9.35927943]
[1730209544413,2.7815,179.86,179.79,2.7824]
[1730209544618,2.7815,179.86,179.76,9.35927943]
[1730209545118,4.98,179.87,179.78,9.35927943]
[1730209545321,2.58282836,179.9,179.8,9.35927943]
[1730209545623,2.7807,179.91,179.8,9.35927943]
[1730209545826,2.58282836,179.92,179.8,9.35927943]
[1730209546121,7.00713955,179.92,179.85,2.7815]
[1730209546325,7.00713955,179.92,179.81,1.2973]
[1730209546326,7.20481119,179.92,179.81,1.2973]
[1730209546517,2.7805,179.92,179.82,1.2586]
[1730209547425,9.35927943,179.91,179.82,1.2586]
[1730209547613,10.62507943,179.91,179.82,1.2586]
[1730209548419,2.7806,179.92,179.82,1.2586]
[1730209548621,16.92210779,179.93,179.82,1.2586]
[1730209548824,16.92210779,179.93,179.86,2.7813]
[1730209548825,2.7805,179.92,179.86,2.7813]
[1730209549025,2.7805,179.92,179.82,10.61787943]
[1730209549429,2.7805,179.92,179.86,2.7814]
[1730209550028,4.98,179.91,179.87,2.7813]
[1730209550825,7.7607,179.91,179.87,2.7813]
[1730209551329,4.98,179.91,179.82,10.61787943]
[1730209551534,4.98,179.91,179.89,2.7809]
[1730209552030,7.7608,179.91,179.82,10.61787943]
[1730209552420,2.7809,179.9,179.85,2.7814]
[1730209552615,2.7809,179.9,179.82,1.2586]
[1730209553723,2.7811,179.89,179.82,1.2586]
[1730209554131,2.7811,179.89,179.84,2.7816]
[1730209554629,14.33927943,179.91,179.82,1.2586]
[1730209554630,4.98,179.91,179.82,10.61787943]
[1730209555320,14.33927943,179.91,179.82,1.2586]
[1730209556124,16.92210779,179.91,179.82,1.2586]
[1730209556318,2.7811,179.89,179.85,2.7815]
[1730209556519,2.7811,179.89,179.82,1.2586]
[1730209556725,2.58282836,179.91,179.82,10.61787943]
[1730209557024,7.7484851,179.92,179.82,10.61787943]
[1730209557025,4.98,179.9,179.82,10.61787943]
[1730209558946,4.98,179.9,179.84,2.7817]
[1730209559233,7.7609,179.9,179.82,1.2586]
[1730209559536,7.7609,179.9,179.86,2.7814]
[1730209559932,2.7812,179.88,179.82,1.2586]
[1730209560228,2.7812,179.88,179.84,2.7817]
[1730209561137,7.56282836,179.9,179.82,1.2586]
[1730209561332,4.98,179.9,179.82,1.2586]
[1730209561935,7.7609,179.9,179.85,2.7815]
[1730209562134,4.98,179.9,179.82,1.2586]
[1730209562332,4.98,179.9,179.83,9.35927943]
[1730209562530,4.98,179.9,179.86,2.7814]
[1730209562729,4.98,179.9,179.83,9.35927943]
[1730209563030,7.7608,179.9,179.85,2.7814]
[1730209563235,7.7608,179.9,179.83,9.35927943]
[1730209563533,4.98,179.9,179.82,1.2586]
[1730209564341,2.7812,179.88,179.84,2.7816]
[1730209564532,4.98,179.9,179.82,1.2586]
[1730209564928,2.7812,179.88,179.84,2.7817]
[1730209565132,9.35927943,179.89,179.78,9.35927943]
[1730209565428,2.7815,179.86,179.81,2.7821]
[1730209565939,4.98,179.85,179.76,3.865]
[1730209566131,14.33927943,179.85,179.76,2.6174]
[1730209566328,9.35927943,179.83,179.71,9.35927943]
[1730209567247,9.35927943,179.8,179.71,9.35927943]
[1730209567541,4.98,179.79,179.71,9.35927943]
[1730209567932,4.98,179.79,179.74,2.7832]
[1730209568434,7.7625,179.79,179.74,2.7832]
[1730209568636,4.98,179.79,179.71,9.35927943]
[1730209568828,2.7828,179.78,179.73,2.7833]
[1730209569627,2.7828,179.77,179.73,2.7833]
[1730209569942,4.98,179.79,179.69,9.35927943]
[1730209570143,4.98,179.79,179.74,2.7833]
[1730209570350,2.7829,179.77,179.69,9.35927943]
[1730209570837,4.98,179.79,179.69,9.35927943]
[1730209571032,9.35927943,179.78,179.69,9.35927943]
[1730209571237,1.2211,179.78,179.71,9.35927943]
[1730209571441,4.72,179.77,179.71,9.35927943]
[1730209571838,4.72,179.77,179.75,2.783]
[1730209573149,4.72,179.79,179.77,2.7827]
[1730209573446,4.72,179.79,179.74,9.35927943]
[1730209574145,4.72,179.79,179.76,2.7829]
[1730209574545,4.72,179.79,179.74,9.35927943]
[1730209574742,4.72,179.79,179.76,2.783]
[1730209575441,4.72,179.79,179.74,9.35927943]
[1730209575948,4.72,179.79,179.71,9.35927943]
[1730209576336,2.7828,179.78,179.74,2.7831]
[1730209576541,4.72,179.79,179.71,9.35927943]
[1730209577441,2.7828,179.78,179.73,2.7833]
[1730209578037,4.72,179.79,179.73,2.7833]
[1730209578248,2.7829,179.77,179.73,2.7833]
[1730209578452,4.72,179.79,179.71,9.35927943]
[1730209578646,2.7828,179.77,179.73,2.7834]
[1730209579247,4.72,179.79,179.73,2.7834]
[1730209579440,4.72,179.79,179.67,4.72]
[1730209579441,4.72,179.79,179.76,2.7828]
[1730209579649,4.72,179.79,179.74,9.35927943]
[1730209580258,7.5026,179.79,179.75,2.783]
[1730209581042,2.7827,179.78,179.75,2.783]
[1730209581356,2.7827,179.78,179.74,12.14247943]
[1730209581850,2.783,179.76,179.73,2.7833]
[1730209582050,4.72,179.79,179.73,2.7833]
[1730209582356,2.7829,179.77,179.73,2.7833]
[1730209582748,4.72,179.79,179.72,2.7835]
[1730209582961,2.7831,179.76,179.72,2.7835]
[1730209583250,4.72,179.79,179.72,2.7835]
[1730209583456,2.783,179.76,179.72,2.7835]
[1730209585446,4.72,179.79,179.73,9.35927943]
[1730209586458,2.7828,179.78,179.74,2.7832]
[1730209587048,4.72,179.78,179.73,9.35927943]
[1730209587648,4.72,179.78,179.75,2.783]
[1730209587850,4.72,179.78,179.73,9.35927943]
[1730209588251,10.61347943,179.85,179.76,9.35927943]
[1730209588452,4.72,179.84,179.76,9.35927943]
[1730209588648,2.782,179.83,179.78,2.7826]
[1730209588853,1.2542,179.85,179.78,2.7826]
[1730209588854,4.72,179.82,179.78,2.7826]
[1730209589355,2.7824,179.8,179.76,12.14217943]
[1730209589654,2.7824,179.8,179.76,2.7829]
[1730209590262,4.72,179.82,179.73,9.35927943]
[1730209590559,2.7822,179.81,179.77,2.7828]
[1730209591754,1.2542,179.85,179.75,9.35927943]
[1730209591955,4.72,179.84,179.75,9.35927943]
[1730209592262,4.72,179.84,179.78,2.7825]
[1730209592965,2.782,179.83,179.78,2.7825]
[1730209593264,4.72,179.84,179.79,2.7824]
[1730209593657,2.7822,179.82,179.79,2.7824]
[1730209594053,9.35927943,179.83,179.75,2.7831]
[1730209594263,9.35927943,179.83,179.72,9.35927943]
[1730209594959,9.35927943,179.81,179.7,9.35927943]
[1730209595364,2.7827,179.78,179.75,2.783]
[1730209595551,4.72,179.77,179.7,9.35927943]
[1730209595957,4.72,179.77,179.76,2.783]
[1730209597660,4.72,179.77,179.75,2.7831]
[1730209598664,4.72,179.77,179.74,2.7832]
[1730209598857,4.72,179.77,179.7,9.35927943]
[1730209599862,4.72,179.77,179.75,2.7831]
[1730209600664,4.72,179.77,179.68,10.66177943]
[1730209601059,5.99070808,179.76,179.71,5.99070808]
[1730209601363,5.99070808,179.75,179.68,1.3025]
[1730209601565,5.99070808,179.76,179.7,5.99070808]
[1730209602365,4.72,179.77,179.69,5.99070808]
[1730209602366,5.99070808,179.73,179.69,5.99070808]
[1730209602558,10.55070808,179.73,179.69,5.99070808]
[1730209602758,4.56,179.73,179.7,2.7838]
[1730209603361,4.56,179.73,179.7,8.77450808]
[1730209603763,4.56,179.73,179.7,5.99070808]
[1730209603969,4.56,179.73,179.71,2.7837]
[1730209604571,7.3435,179.73,179.69,8.77470808]
[1730209604770,13.33420808,179.73,179.69,2.784]
[1730209604970,10.55070808,179.73,179.69,2.784]
[1730209605272,13.33420808,179.73,179.69,2.784]
[1730209605462,10.55070808,179.73,179.68,2.7841]
[1730209605658,4.56,179.73,179.66,1.3056]
[1730209605863,5.99070808,179.71,179.66,5.99070808]
[1730209606264,4.56,179.73,179.66,5.99070808]
[1730209606265,2.7837,179.72,179.68,2.7842]
[1730209606463,5.99070808,179.71,179.66,5.99070808]
[1730209607474,8.77450808,179.71,179.67,2.7843]
[1730209607673,4.56,179.73,179.63,1.2389]
[1730209607674,5.99070808,179.69,179.63,1.2389]
[1730209607865,4.56,179.69,179.67,2.7844]
[1730209608066,4.56,179.69,179.67,5.99070808]
[1730209609369,4.56,179.69,179.66,5.99070808]
[1730209609571,5.99070808,179.68,179.63,1.2389]
[1730209609772,5.99070808,179.68,179.63,7.22960808]
[1730209609970,5.99070808,179.68,179.65,2.7845]
[1730209610470,2.7844,179.67,179.63,2.7849]
[1730209611075,5.99070808,179.7,179.65,5.99070808]
[1730209611381,4.56,179.69,179.66,5.99070808]
[1730209611564,4.56,179.69,179.66,8.77510808]
[1730209611764,10.55070808,179.69,179.65,5.99070808]
[1730209611969,5.99070808,179.68,179.59,1.249]
[1730209612275,5.99070808,179.68,179.64,2.7847]
[1730209612670,4.56,179.69,179.64,2.7847]
[1730209612872,2.7843,179.68,179.64,2.7847]
[1730209613164,4.56,179.69,179.63,2.7848]
[1730209613767,5.8132,179.69,179.63,2.7848]
[1730209613967,2.7844,179.67,179.59,9.3599869]
[1730209614270,5.8132,179.69,179.59,9.3599869]
[1730209614776,2.7842,179.68,179.59,9.3599869]
[1730209615174,2.7842,179.68,179.63,2.7848]
[1730209615678,2.7842,179.68,179.61,2.7851]
[1730209615971,2.7842,179.68,179.59,9.3599869]
[1730209616275,4.56,179.69,179.62,9.3599869]
[1730209616776,4.56,179.68,179.67,2.7842]
[1730209619177,4.56,179.68,179.66,2.7844]
[1730209620478,4.56,179.68,179.62,9.3599869]
[1730209621283,4.56,179.7,179.64,9.3599869]
[1730209621483,10.6131869,179.74,179.64,9.3599869]
[1730209621682,7.3434,179.73,179.69,2.784]
[1730209623881,4.56,179.73,179.65,2.5134]
[1730209624081,2.7837,179.71,179.67,2.7842]
[1730209624585,2.7837,179.71,179.66,2.7844]
[1730209624782,2.7837,179.71,179.65,2.5134]
[1730209625081,2.7837,179.71,179.66,2.7844]
[1730209625682,9.3599869,179.72,179.66,2.7844]
[1730209625877,2.7839,179.7,179.66,2.7844]
[1730209626193,4.56,179.69,179.65,2.7846]
[1730209626581,7.344,179.69,179.65,2.7846]
[1730209626885,4.56,179.72,179.66,9.3599869]
[1730209627277,4.56,179.73,179.69,2.7839]
[1730209627786,4.56,179.72,179.67,2.7842]
[1730209627985,9.3599869,179.71,179.62,4.56]
[1730209628287,9.3599869,179.71,179.6,2.5283]
[1730209628288,9.3599869,179.71,179.65,2.7846]
[1730209628485,9.3599869,179.71,179.6,2.5283]
[1730209628877,2.7842,179.68,179.64,2.7847]
[1730209629187,4.56,179.67,179.64,2.7847]
[1730209629582,4.56,179.67,179.65,2.7845]
[1730209629979,2.7834,179.73,179.61,9.3599869]
[1730209630188,4.56,179.72,179.61,9.3599869]
[1730209631085,13.9199869,179.72,179.61,9.3599869]
[1730209631288,2.7837,179.71,179.67,2.7842]
[1730209631489,13.9199869,179.72,179.61,9.3599869]
[1730209632293,16.7035869,179.72,179.61,9.3599869]
[1730209632493,13.9199869,179.72,179.61,9.3599869]
[1730209633088,2.7839,179.7,179.64,2.7847]
[1730209633392,2.7839,179.7,179.61,9.3599869]
[1730209633792,2.7839,179.7,179.65,2.7845]
[1730209634596,5.98887026,179.69,179.65,2.7845]
[1730209634891,5.98887026,179.67,179.63,2.7848]
[1730209635085,5.98887026,179.67,179.62,5.98887026]
[1730209635592,4.54,179.68,179.65,5.98887026]
[1730209635993,4.54,179.68,179.67,2.7843]
[1730209636595,4.54,179.68,179.64,5.98887026]
[1730209637397,10.52887026,179.68,179.66,2.7844]
[1730209638200,10.52887026,179.68,179.64,5.98887026]
[1730209638389,10.52887026,179.68,179.67,2.7843]
[1730209638593,4.54,179.68,179.67,2.7843]
[1730209639397,10.52887026,179.71,179.66,5.98887026]
[1730209639597,5.98887026,179.71,179.66,5.98887026]
[1730209639896,5.98887026,179.71,179.62,4.54]
[1730209639897,5.98887026,179.73,179.68,5.98887026]
[1730209640200,10.52887026,179.73,179.68,5.98887026]
[1730209640691,10.52887026,179.73,179.7,2.7838]
[1730209640894,5.98887026,179.71,179.62,4.54]
[1730209641095,5.98887026,179.68,179.63,5.98887026]
[1730209641397,5.98887026,179.68,179.67,2.7843]
[1730209641701,5.98887026,179.68,179.63,5.98887026]
[1730209642398,5.98887026,179.7,179.63,2.785]
[1730209642594,5.98887026,179.7,179.66,5.98887026]
[1730209642990,5.98887026,179.7,179.67,2.7842]
[1730209643392,5.8045,179.73,179.61,5.11707846]
[1730209643695,5.98887026,179.68,179.61,5.98887026]
[1730209644085,5.98887026,179.66,179.64,2.7848]
[1730209645196,5.98887026,179.67,179.66,2.7845]
[1730209646793,4.54,179.68,179.66,2.7845]
[1730209647593,5.98887026,179.67,179.66,2.7845]
[1730209647794,4.54,179.68,179.66,2.7845]
[1730209647997,4.54,179.72,179.69,2.7839]
[1730209648200,5.98887026,179.71,179.69,2.7839]
[1730209648392,5.98887026,179.71,179.65,5.98887026]
[1730209649194,5.98887026,179.71,179.68,2.7841]
[1730209649393,5.98887026,179.69,179.68,2.7841]
[1730209649701,5.98887026,179.69,179.6,2.5283]
[1730209649890,5.98887026,179.69,179.67,2.7842]
[1730209650199,5.98887026,179.68,179.62,5.98887026]
[1730209650503,5.98887026,179.68,179.64,5.98887026]
[1730209650893,5.98887026,179.68,179.63,5.98887026]
[1730209651501,5.98887026,179.68,179.66,2.7844]
[1730209651700,5.98887026,179.68,179.6,2.5283]
[1730209651902,5.98887026,179.68,179.62,5.98887026]
[1730209652098,5.98887026,179.67,179.62,5.98887026]
[1730209653400,5.98887026,179.67,179.65,2.7846]
[1730209654197,5.98887026,179.67,179.64,2.7847]
[1730209654701,5.98887026,179.67,179.65,2.7846]
[1730209657403,4.54,179.68,179.64,5.98887026]
[1730209657700,5.98887026,179.66,179.6,2.5283]
[1730209657907,5.98887026,179.66,179.64,2.7847]
[1730209658303,5.98887026,179.65,179.64,2.7847]
[1730209659098,5.98887026,179.65,179.59,1.2929]
[1730209659301,5.98887026,179.64,179.59,1.2929]
[1730209659707,5.98887026,179.64,179.62,2.785]
[1730209660202,4.54,179.68,179.59,7.28177026]
[1730209660404,5.98887026,179.66,179.61,5.98887026]
[1730209660707,4.54,179.68,179.61,5.98887026]
[1730209660908,5.98887026,179.66,179.63,2.7849]
[1730209663008,5.98887026,179.66,179.61,5.98887026]
[1730209663309,4.54,179.68,179.64,5.98887026]
[1730209663310,10.52887026,179.68,179.64,5.98887026]
[1730209663808,10.52887026,179.68,179.65,2.7846]
[1730209664197,10.52887026,179.68,179.64,5.98887026]
[1730209664401,10.52887026,179.68,179.65,2.7846]
[1730209664903,10.46887026,179.68,179.65,2.7846]
[1730209666412,5.98887026,179.66,179.65,2.7846]
[1730209667707,10.46887026,179.68,179.65,2.7846]
[1730209667911,4.48,179.68,179.65,5.98887026]
[1730209668208,13.05169862,179.71,179.66,5.98887026]
[1730209668409,23.43736253,179.71,179.66,5.98887026]
[1730209668713,5.98887026,179.7,179.64,5.98887026]
[1730209669007,5.98887026,179.7,179.66,2.7844]
[1730209671613,5.98887026,179.68,179.66,2.7844]
[1730209671809,20.2350303,179.71,179.61,2.7852]
[1730209671810,2.7845,179.66,179.61,2.7852]
[1730209672016,5.98887026,179.64,179.57,263.94073359]
[1730209672217,5.98887026,179.64,179.59,5.98887026]
[1730209672417,5.98887026,179.65,179.6,14.00566019]
[1730209672622,5.98887026,179.65,179.61,5.01050399]
[1730209672915,5.98887026,179.65,179.6,5.98887026]
[1730209673117,5.98887026,179.65,179.62,2.785]
[1730209673302,5.98887026,179.65,179.6,5.98887026]
[1730209673509,4.48,179.67,179.62,5.98887026]
[1730209674118,4.48,179.67,179.63,2.7849]
[1730209674419,4.48,179.67,179.62,5.98887026]
[1730209674618,5.98887026,179.68,179.64,2.7847]
[1730209674822,5.98887026,179.68,179.6,2.5983]
[1730209674823,12.98317877,179.71,179.66,5.98887026]
[1730209675115,13.05169862,179.72,179.61,8.01712867]
[1730209675313,20.24687877,179.72,179.67,2.7843]
[1730209675514,20.24687877,179.72,179.65,5.98887026]
[1730209675515,13.42841475,179.71,179.65,5.98887026]
[1730209675718,5.98887026,179.71,179.65,5.98887026]
[1730209676117,5.98887026,179.71,179.67,2.7842]
[1730209677127,11.35549862,179.71,179.66,2.7845]
[1730209677425,5.98887026,179.69,179.66,2.7845]
[1730209677719,5.98887026,179.67,179.62,5.98887026]
[1730209678116,5.98887026,179.67,179.64,2.7847]
[1730209678319,5.98887026,179.68,179.63,5.98887026]
[1730209678717,2.58282836,179.7,179.63,5.98887026]
[1730209678913,5.98887026,179.7,179.65,5.98887026]
[1730209679113,8.57169862,179.7,179.65,5.98887026]
[1730209679321,8.57169862,179.7,179.66,2.7844]
[1730209679516,5.98887026,179.67,179.5,5.5738]
[1730209679726,2.58282836,179.7,179.59,5.98887026]
[1730209679727,5.98887026,179.64,179.59,5.98887026]
[1730209679913,5.98887026,179.65,179.62,2.785]
[1730209680114,5.98887026,179.63,179.58,5.98887026]
[1730209680310,5.98887026,179.63,179.59,4.94909729]
[1730209680524,5.98887026,179.63,179.6,4.94909729]
[1730209680724,5.98887026,179.63,179.61,2.7852]
[1730209681224,4.48,179.66,179.63,2.7848]
[1730209681412,4.48,179.66,179.61,5.98887026]
[1730209681617,4.48,179.66,179.62,5.98887026]
[1730209683122,4.48,179.66,179.65,2.7847]
[1730209684021,10.46887026,179.66,179.61,5.98887026]
[1730209684221,10.46887026,179.66,179.64,2.7848]
[1730209684821,10.46887026,179.66,179.65,2.7847]
[1730209685727,10.46887026,179.66,179.58,4.48]
[1730209686030,5.98887026,179.65,179.63,2.7849]
[1730209686415,5.98887026,179.65,179.59,5.98887026]
[1730209686623,5.98887026,179.65,179.62,2.7851]
[1730209687125,4.48,179.66,179.62,2.7851]
[1730209687431,10.46887026,179.66,179.62,2.7851]
[1730209689023,13.07488478,179.68,179.64,5.98887026]
[1730209689226,2.58869506,179.68,179.64,5.98887026]
[1730209689423,7.48579066,179.68,179.64,5.98887026]
[1730209689728,7.48579066,179.68,179.65,2.7846]
[1730209689924,7.48579066,179.68,179.64,5.98887026]
[1730209690432,13.07488478,179.69,179.65,5.98887026]
[1730209690730,5.98887026,179.66,179.6,5.98887026]
[1730209690929,5.98887026,179.64,179.61,2.7852]
[1730209691231,13.07488478,179.68,179.6,5.98887026]
[1730209691432,5.98887026,179.66,179.6,5.98887026]
[1730209691926,16.47505998,179.67,179.61,5.98887026]
[1730209692127,10.48618972,179.67,179.63,5.98887026]
[1730209692432,19.06375504,179.68,179.64,2.7847]
[1730209692730,10.48618972,179.67,179.64,2.7847]
[1730209693321,8.57756532,179.68,179.64,2.7847]
[1730209693931,13.07488478,179.68,179.67,8.77317026]
[1730209694133,2.58869506,179.7,179.65,5.98887026]
[1730209694426,7.48409285,179.7,179.65,5.98887026]
[1730209694830,5.98887026,179.68,179.6,1.2903]
[1730209695029,5.98887026,179.68,179.63,5.98887026]
[1730209695230,10.47970524,179.69,179.65,5.98887026]
[1730209695433,13.0684003,179.7,179.66,2.7845]
[1730209695830,2.58869506,179.7,179.67,2.7843]
[1730209696137,7.48403407,179.7,179.67,2.7843]
[1730209696337,7.48403407,179.7,179.66,5.98887026]
[1730209696338,13.47290433,179.7,179.65,5.98887026]
[1730209696530,19.05727056,179.7,179.65,5.98887026]
[1730209696929,19.05727056,179.7,179.66,2.7844]
[1730209697234,5.98887026,179.68,179.6,1.2903]
[1730209697423,5.98887026,179.68,179.63,5.98887026]
[1730209697624,16.4685755,179.68,179.63,5.98887026]
[1730209698029,2.58869506,179.69,179.64,5.98887026]
[1730209698234,7.48408399,179.69,179.65,2.7846]
[1730209698633,17.96378923,179.69,179.65,2.7846]
[1730209698836,13.0684003,179.69,179.65,2.7846]
[1730209699030,13.0684003,179.69,179.64,5.98887026]
[1730209699235,5.98887026,179.68,179.63,5.98887026]
[1730209700042,8.57756532,179.69,179.64,5.98887026]
[1730209700539,8.57756532,179.69,179.65,2.7845]
[1730209700939,8.57756532,179.69,179.64,5.98887026]
[1730209701134,5.98887026,179.68,179.63,5.98887026]
[1730209701440,21.84127056,179.69,179.63,5.98887026]
[1730209701647,7.483983,179.68,179.63,5.98887026]
[1730209702145,17.96368824,179.68,179.64,5.98887026]
[1730209702441,2.58869506,179.69,179.64,5.98887026]
[1730209702640,7.4838103,179.69,179.65,2.7845]
[1730209703240,7.4838103,179.69,179.64,5.98887026]
[1730209703542,7.4838103,179.69,179.66,2.7844]
[1730209704343,7.4838103,179.69,179.64,5.98887026]
[1730209704543,7.4838103,179.69,179.65,2.7845]
[1730209704940,17.96351554,179.69,179.65,2.7845]
[1730209705142,13.0684003,179.69,179.65,2.7845]
[1730209705436,2.58869506,179.69,179.65,2.7845]
[1730209705643,8.77307026,179.68,179.62,2.785]
[1730209705843,5.98887026,179.67,179.62,5.98887026]
[1730209706339,5.98887026,179.67,179.63,2.7849]
[1730209706540,5.98887026,179.67,179.62,5.98887026]
[1730209706937,5.98887026,179.65,179.61,2.7852]
[1730209707134,5.98887026,179.65,179.6,5.98887026]
[1730209707339,2.58869506,179.67,179.59,5.98887026]
[1730209707340,5.98887026,179.64,179.59,5.98887026]
[1730209707641,5.98887026,179.64,179.61,2.7853]
[1730209707833,5.98887026,179.62,179.57,263.94073359]
[1730209708037,5.98887026,179.62,179.59,2.7856]
[1730209708241,5.98887026,179.62,179.39,360.71]
[1730209708242,5.98887026,179.59,179.46,2.8250657]
[1730209708538,5.98887026,179.56,179.52,5.98887026]
[1730209709050,5.98887026,179.56,179.53,2.7864]